fUSD/lending_fUSD_20251001
["ID","MTS","AMOUNT","RATE_DAILY","PERIOD"]
[388637507,1759283433543,-150.0,0.00022722,2]
[388637508,1759283433552,-3191.24683,0.0002273,2]
[388637509,1759283433562,-246.88,0.00022731,2]
[388637510,1759283433573,-346.0,0.0002274,7]
[388637511,1759283433588,-3191.24683,0.0002276,2]
[388637512,1759283433598,-479.72518496,0.00022785,2]
[388637514,1759283433607,-4403.33163311,0.00022822,2]
[388637516,1759283433617,-277.3693658,0.00022829,2]
[388637527,1759283434040,-208.0,0.00022844,2]
[388637528,1759283434087,-150.4,0.00022863,2]
[388637529,1759283434096,-550.42152801,0.00022888,2]
[388637530,1759283434106,-3191.24683,0.0002289,2]
[388637531,1759283434116,-208.0,0.00022957,2]
[388637532,1759283434127,-208.0,0.00022982,2]
[388637533,1759283434138,-621.11787106,0.00022991,2]
[388637534,1759283434148,-3191.24683,0.0002301,2]
[388637535,1759283434159,-346.0,0.00023014,7]
[388637536,1759283434170,-170.0,0.00023014,7]
[388637537,1759283434181,-346.0,0.00023014,7]
[388637538,1759283434190,-208.0,0.00023039,2]
[388637539,1759283434200,-691.8142141,0.00023093,2]
[388637540,1759283434210,-3272.13827043,0.0002311,2]
[388637541,1759283434219,-3191.24683,0.0002314,2]
[388637542,1759283434228,-4403.33163311,0.00023157,2]
[388637543,1759283434238,-198.78,0.00023163,2]
[388637544,1759283434248,-367.0,0.0002318,2]
[388637545,1759283434257,-208.0,0.00023189,2]
[388637546,1759283434267,-762.51055715,0.00023196,2]
[388637547,1759283434278,-208.0,0.00023201,2]
[388637548,1759283434292,-600.0,0.00023206,2]
[388637549,1759283434302,-208.0,0.00023217,2]
[388637550,1759283434311,-208.0,0.0002322,2]
[388637551,1759283434321,-208.0,0.00023251,2]
[388637552,1759283434331,-3191.24683,0.0002326,2]
[388637553,1759283434341,-833.2069002,0.00023299,2]
[388637554,1759283434352,-1000.0,0.00023347,2]
[388637555,1759283434362,-8250.98,0.00023368,2]
[388637556,1759283434372,-150.99,0.00023368,2]
[388637557,1759283434382,-9999.99,0.00023368,2]
[388637558,1759283434394,-299.99,0.00023368,7]
[388637559,1759283434404,-9999.99,0.00023368,2]
[388637560,1759283434415,-208.0,0.0002337,2]
[388637561,1759283434425,-152.11,0.00023375,2]
[388637562,1759283434434,-277.3693658,0.00023394,2]
[388637563,1759283434444,-903.90324324,0.00023402,2]
[388637564,1759283434454,-212.0,0.0002342,2]
[388637565,1759283434464,-208.0,0.00023491,2]
[388637566,1759283434473,-4403.33163311,0.00023492,2]
[388637567,1759283434483,-212.0,0.00023501,2]
[388637568,1759283434492,-974.59958629,0.00023505,2]
[388637569,1759283434503,-3272.13827043,0.0002354,2]
[388637570,1759283434513,-1611.08,0.00023562,2]
[388637571,1759283434522,-208.0,0.00023583,2]
[388637572,1759283434533,-1045.29592934,0.00023607,2]
[388637573,1759283434545,-208.0,0.00023616,2]
[388637574,1759283434554,-353.00971069,0.00023653,2]
[388637575,1759283434564,-153.0196234,0.00023653,2]
[388637576,1759283434573,-500.0,0.00023653,2]
[388637577,1759283434586,-178.28781396,0.00023653,2]
[388637578,1759283434596,-670.58624095,0.00023653,2]
[388637579,1759283434606,-500.0,0.00023653,2]
[388637580,1759283434615,-500.0,0.00023653,2]
[388637581,1759283434626,-500.0,0.00023653,2]
[388637582,1759283434636,-8882.6885148,0.00023653,2]
[388637583,1759283434645,-500.0,0.00023653,2]
[388637584,1759283434656,-500.0,0.00023653,2]
[388637585,1759283434665,-500.0,0.00023653,2]
[388637586,1759283434675,-322.6107,0.00023653,2]
[388637587,1759283434685,-500.0,0.00023653,2]
[388637588,1759283434695,-500.0,0.00023653,2]
[388637589,1759283434710,-500.0,0.00023653,2]
[388637590,1759283434723,-500.0,0.00023653,2]
[388637591,1759283434732,-500.0,0.00023653,2]
[388637592,1759283434742,-500.0,0.00023653,2]
[388637593,1759283434752,-500.0,0.00023653,2]
[388637594,1759283434763,-500.0,0.00023653,2]
[388637595,1759283434773,-500.0,0.00023653,2]
[388637596,1759283434783,-500.0,0.00023653,2]
[388637597,1759283434792,-500.0,0.00023653,2]
[388637598,1759283434802,-500.0,0.00023653,2]
[388637599,1759283434812,-500.0,0.00023653,2]
[388637600,1759283434822,-500.0,0.00023653,2]
[388637601,1759283434832,-500.0,0.00023653,2]
[388637602,1759283434841,-151.19799779,0.00023653,2]
[388637603,1759283434851,-500.0,0.00023653,2]
[388637604,1759283434861,-500.0,0.00023653,2]
[388637605,1759283434870,-500.0,0.00023653,2]
[388637606,1759283434879,-500.0,0.00023653,2]
[388637607,1759283434889,-500.0,0.00023653,2]
[388637608,1759283434898,-500.0,0.00023653,2]
[388637609,1759283434908,-500.0,0.00023653,2]
[388637610,1759283434918,-500.0,0.00023653,2]
[388637611,1759283434927,-500.0,0.00023653,2]
[388637612,1759283434937,-500.0,0.00023653,2]
[388637613,1759283434947,-198.62568098,0.00023653,2]
[388637614,1759283434957,-500.0,0.00023653,2]
[388637615,1759283434967,-500.0,0.00023653,2]
[388637616,1759283434977,-500.0,0.00023653,2]
[388637617,1759283434987,-343.73558743,0.00023653,2]
[388637618,1759283434997,-257.91778498,0.00023653,2]
[388637619,1759283435007,-200.0,0.00023653,2]
[388637620,1759283435017,-154.76209377,0.00023653,2]
[388637621,1759283435034,-281.70174154,0.00023653,2]
[388637622,1759283435043,-406.94018197,0.00023653,2]
[388637623,1759283435053,-9211.34798985,0.00023708,2]
[388637624,1759283435063,-1115.99227239,0.0002371,2]
[388637625,1759283435073,-150.0,0.00023722,2]
[388637626,1759283435083,-859.3512887,0.00023726,2]
[388637627,1759283435093,-600.0,0.00023754,2]
[388637628,1759283435102,-9552.16786547,0.00023763,2]
[388637629,1759283435113,-37337.5166738,0.00023788,2]
[388637630,1759283435122,-208.0,0.00023808,2]
[388637631,1759283435132,-208.0,0.00023808,2]
[388637632,1759283435142,-1186.68861543,0.00023813,2]
[388637633,1759283435152,-208.0,0.00023816,2]
[388637634,1759283435161,-9905.5980765,0.00023818,2]
[388637635,1759283435171,-4403.33163311,0.00023827,2]
[388637636,1759283435180,-740.98,0.00023836,2]
[388637637,1759283435191,-313.98,0.00023836,2]
[388637638,1759283435200,-2457.01,0.00023836,2]
[388637639,1759283435210,-150.0,0.00023836,2]
[388637640,1759283435219,-1086.14,0.00023836,2]
[388637641,1759283435228,-150.0,0.00023836,2]
[388637642,1759283435238,-544.81,0.00023836,2]
[388637643,1759283435248,-150.34,0.00023836,2]
[388637644,1759283435258,-10272.10520533,0.00023873,2]
[388637645,1759283435268,-208.0,0.00023874,2]
[388637646,1759283435277,-212.0,0.00023897,2]
[388637647,1759283435287,-1257.38495848,0.00023916,2]
[388637648,1759283435299,-10652.17309792,0.00023928,2]
[388637649,1759283435309,-277.3693658,0.00023959,2]
[388637650,1759283435319,-3272.13827043,0.00023971,2]
[388637651,1759283435329,-11046.30350255,0.00023983,2]
[388637652,1759283435338,-153.37363428,0.00023997,7]
[388637653,1759283435348,-2827.2244171,0.00024,3]
[388637654,1759283435357,-2052.95,0.00024,2]
[388637655,1759283435367,-1328.08130153,0.00024019,2]
[388637656,1759283435377,-208.0,0.0002402,2]
[388637657,1759283435387,-928.8643785,0.00024034,2]
[388637658,1759283435397,-11455.01673214,0.00024038,2]
[388637659,1759283435407,-11878.85235123,0.00024093,2]
[388637660,1759283435416,-1398.77764457,0.00024121,2]
[388637661,1759283435426,-1000.0,0.00024134,2]
[388637662,1759283435436,-12318.36988823,0.00024148,2]
[388637663,1759283435446,-4403.33163311,0.00024161,2]
[388637664,1759283435456,-346.0,0.00024164,7]
[388637665,1759283435465,-346.0,0.00024164,7]
[388637666,1759283435475,-173.0,0.00024164,7]
[388637667,1759283435485,-806.89,0.00024168,2]
[388637668,1759283435494,-768.86,0.00024168,2]
[388637669,1759283435504,-446.01,0.00024168,2]
[388637670,1759283435514,-806.89,0.00024168,2]
[388637671,1759283435523,-806.89,0.00024168,2]
[388637672,1759283435533,-473.55,0.00024168,2]
[388637673,1759283435543,-4450.31992159,0.00024203,2]
[388637674,1759283435553,-212.0,0.0002421,2]
[388637675,1759283435562,-1469.47398762,0.00024224,2]
[388637676,1759283435572,-928.8643785,0.00024296,2]
[388637677,1759283435584,-600.0,0.00024302,2]
[388637678,1759283435594,-1540.17033067,0.00024327,2]
[388637679,1759283435604,-212.0,0.0002433,2]
[388637680,1759283435614,-191.7471906,0.00024337,2]
[388637681,1759283435624,-865.078,0.00024361,2]
[388637682,1759283435634,-6849.552,0.00024361,2]
[388637683,1759283435644,-4114.0,0.00024361,2]
[388637684,1759283435653,-360.0,0.0002437,2]
[388637685,1759283435663,-8331.1260749,0.00024401,2]
[388637686,1759283435672,-3272.13827043,0.00024401,2]
[388637687,1759283435683,-1610.86667371,0.0002443,2]
[388637688,1759283435692,-4403.33163311,0.00024496,2]
[388637689,1759283435702,-951.0,0.00024503,2]
[388637690,1759283435712,-277.3693658,0.00024524,2]
[388637691,1759283435723,-1681.56301677,0.00024533,2]
[388637692,1759283435733,-1615.24786563,0.00024543,2]
[388637693,1759283435743,-624.55629746,0.00024557,2]
[388637694,1759283435752,-160.61373489,0.00024557,2]
[388637695,1759283435762,-1371.98847952,0.00024557,2]
[388637696,1759283435772,-928.8643785,0.00024557,2]
[388637697,1759283435782,-625.8443113,0.00024557,2]
[388637698,1759283435791,-526.07483995,0.00024557,2]
[388637699,1759283435801,-151.35,0.0002459,2]
[388637700,1759283435810,-175.11216507,0.0002459,2]
[388637701,1759283435820,-349344.05578411,0.00024599,2]
[388637702,1759283435830,-26827.22520312,0.000246,2]
[388637703,1759283435840,-2988.0147428,0.00024637,8]
[388637704,1759283435849,-6208.2331159,0.0002464,2]
[388637705,1759283435859,-1686.1364867,0.00024647,2]
[388637706,1759283435868,-1243.65,0.00024656,2]
[388637707,1759283435878,-1243.65,0.00024656,2]
[388637708,1759283435888,-1243.65,0.00024656,2]
[388637709,1759283435897,-1243.65,0.00024656,2]
[388637710,1759283435906,-1243.65,0.00024656,2]
[388637711,1759283435915,-1243.65,0.00024656,2]
[388637712,1759283435924,-1243.65,0.00024656,2]
[388637713,1759283435933,-1243.65,0.00024656,2]
[388637714,1759283435943,-1243.65,0.00024656,2]
[388637715,1759283435952,-1243.65,0.00024656,2]
[388637716,1759283435961,-1243.65,0.00024656,2]
[388637717,1759283435971,-1243.65,0.00024656,2]
[388637718,1759283435980,-1243.65,0.00024656,2]
[388637719,1759283435990,-1243.65,0.00024656,2]
[388637720,1759283435999,-1243.65,0.00024656,2]
[388637721,1759283436009,-1243.65,0.00024656,2]
[388637722,1759283436020,-1243.65,0.00024656,2]
[388637723,1759283436029,-1243.65,0.00024656,2]
[388637724,1759283436038,-1243.65,0.00024656,2]
[388637725,1759283436048,-1243.65,0.00024656,2]
[388637726,1759283436057,-1243.65,0.00024656,2]
[388637727,1759283436066,-1243.65,0.00024656,2]
[388637728,1759283436075,-1243.65,0.00024656,2]
[388637729,1759283436085,-1243.75490051,0.00024656,2]
[388637730,1759283436094,-500.0,0.00024656,8]
[388637731,1759283436104,-260.48604052,0.00024656,8]
[388637732,1759283436113,-150.0,0.00024656,2]
[388637733,1759283436123,-300.0,0.00024656,2]
[388637734,1759283436132,-666.0,0.00024656,2]
[388637735,1759283436141,-300.0,0.00024656,2]
[388637736,1759283436151,-300.0,0.00024656,2]
[388637737,1759283436165,-67190.86611231,0.00024657,2]
[388637738,1759283436951,-8743.33975619,0.00024657,2]
[388637739,1759283437003,-12914.34710262,0.00024657,2]
[388637740,1759283437024,-8747.21151323,0.00024657,2]
[388637751,1759283437987,10000.0,0.00030137,120]
[388637752,1759283438418,-357.43554582,0.00021361,2]
[388637753,1759283438448,-263.56445418,0.00021361,2]
[388637754,1759283438458,-230.49244032,0.00021818,2]
[388637755,1759283438468,-621.0,0.00024361,2]
[388637756,1759283438477,-36626.13171683,0.00024657,2]
[388637757,1759283438487,-257.85872227,0.00024657,2]
[388637758,1759283438497,-515.28,0.00024657,2]
[388637759,1759283438507,-365.281208,0.00024657,2]
[388637760,1759283438517,-4635.774007,0.00024657,2]
[388637761,1759283438526,-2336.236173,0.00024657,2]
[388637762,1759283438536,-5234.634726,0.00024657,2]
[388637763,1759283438545,-150.820849,0.00024657,2]
[388637764,1759283438555,-151.0,0.00024657,7]
[388637765,1759283438564,-167.981588,0.00024657,7]
[388637766,1759283438573,-2059.81,0.00024657,2]
[388637767,1759283438585,-500.0,0.00024657,2]
[388637768,1759283438594,-1105.0,0.00024657,2]
[388637769,1759283438603,-500.0,0.00024657,2]
[388637770,1759283438613,-500.0,0.00024657,2]
[388637771,1759283438622,-214.73479521,0.00024657,2]
[388637772,1759283438635,-285.26520479,0.00024657,2]
[388637773,1759283438645,-500.0,0.00024657,2]
[388637774,1759283438655,-862.94,0.00024657,2]
[388637775,1759283438664,-2324.45,0.00024657,2]
[388637776,1759283438673,-509.31,0.00024657,2]
[388637777,1759283438683,-500.0,0.00024657,2]
[388637778,1759283438692,-500.0,0.00024657,2]
[388637779,1759283438701,-500.0,0.00024657,2]
[388637780,1759283438710,-500.0,0.00024657,2]
[388637781,1759283438719,-2476.08,0.00024657,2]
[388637782,1759283438728,-676.33,0.00024657,2]
[388637783,1759283438737,-1438.07,0.00024657,2]
[388637784,1759283438747,-158.77270138,0.00024657,2]
[388637810,1759283439569,-420.35299996,0.00024657,2]
[388637820,1759283439685,-28.71429866,0.00024657,2]
[388637822,1759283439694,-500.0,0.00024657,2]
[388637823,1759283439703,-834.91,0.00024657,2]
[388637825,1759283439712,-277.80220588,0.00024657,2]
[388637827,1759283439721,-655.75,0.00024657,2]
[388637842,1759283439867,-500.0,0.00024657,2]
[388637845,1759283439891,-500.0,0.00024657,2]
[388637847,1759283439900,-1196.77,0.00024657,2]
[388637849,1759283439909,-506.71,0.00024657,2]
[388637850,1759283439918,-500.0,0.00024657,2]
[388637852,1759283439927,-500.0,0.00024657,2]
[388637854,1759283439936,-500.0,0.00024657,2]
[388637857,1759283439946,-500.0,0.00024657,2]
[388637860,1759283439956,-500.0,0.00024657,2]
[388637863,1759283439965,-500.0,0.00024657,2]
[388637865,1759283439975,-1352.08,0.00024657,2]
[388637868,1759283439984,-1352.08,0.00024657,2]
[388637870,1759283439994,-846.45,0.00024657,2]
[388637871,1759283440003,-1031.63,0.00024657,2]
[388637872,1759283440012,-500.0,0.00024657,2]
[388637873,1759283440021,-836.46,0.00024657,2]
[388637874,1759283440029,-500.0,0.00024657,2]
[388637875,1759283440038,-550.88,0.00024657,2]
[388637876,1759283440047,-500.0,0.00024657,2]
[388637877,1759283440056,-500.0,0.00024657,2]
[388637878,1759283440065,-1019.84,0.00024657,2]
[388637880,1759283440074,-500.0,0.00024657,2]
[388637882,1759283440083,-2717.51,0.00024657,2]
[388637884,1759283440092,-2041.91,0.00024657,2]
[388637886,1759283440101,-500.0,0.00024657,2]
[388637887,1759283440110,-500.0,0.00024657,2]
[388637889,1759283440119,-500.0,0.00024657,2]
[388637891,1759283440128,-500.0,0.00024657,2]
[388637893,1759283440137,-500.0,0.00024657,2]
[388637895,1759283440146,-500.0,0.00024657,2]
[388637897,1759283440155,-500.0,0.00024657,2]
[388637899,1759283440164,-500.0,0.00024657,2]
[388637901,1759283440174,-500.0,0.00024657,2]
[388637903,1759283440184,-500.0,0.00024657,2]
[388637906,1759283440195,-500.0,0.00024657,2]
[388637908,1759283440205,-500.0,0.00024657,2]
[388637910,1759283440214,-344.92034361,0.00024657,2]
[388637912,1759283440223,-500.0,0.00024657,2]
[388637914,1759283440232,-500.0,0.00024657,2]
[388637916,1759283440241,-500.0,0.00024657,2]
[388637917,1759283440250,-500.0,0.00024657,2]
[388637919,1759283440259,-500.0,0.00024657,2]
[388637921,1759283440269,-500.0,0.00024657,2]
[388637923,1759283440277,-832.7,0.00024657,2]
[388637925,1759283440286,-502.78565952,0.00024657,2]
[388637927,1759283440295,-500.0,0.00024657,2]
[388637929,1759283440304,-994.69,0.00024657,2]
[388637931,1759283440313,-500.0,0.00024657,2]
[388637933,1759283440321,-500.0,0.00024657,2]
[388637935,1759283440330,-666.17,0.00024657,2]
[388637937,1759283440339,-500.0,0.00024657,2]
[388637940,1759283440349,-456.6887351,0.00024657,2]
[388637941,1759283440358,-500.0,0.00024657,2]
[388637943,1759283440367,-500.0,0.00024657,2]
[388637945,1759283440376,-500.0,0.00024657,2]
[388637947,1759283440385,-500.0,0.00024657,2]
[388637949,1759283440394,-500.0,0.00024657,2]
[388637951,1759283440403,-500.0,0.00024657,2]
[388637953,1759283440412,-500.0,0.00024657,2]
[388637955,1759283440421,-500.0,0.00024657,2]
[388637957,1759283440430,-500.0,0.00024657,2]
[388637960,1759283440443,-500.0,0.00024657,2]
[388637961,1759283440452,-500.0,0.00024657,2]
[388637963,1759283440462,-500.0,0.00024657,2]
[388637965,1759283440471,-500.0,0.00024657,2]
[388637967,1759283440480,-500.0,0.00024657,2]
[388637969,1759283440489,-500.0,0.00024657,2]
[388637971,1759283440498,-500.0,0.00024657,2]
[388637973,1759283440507,-397.76311277,0.00024657,2]
[388638071,1759283442757,-230.49244025,0.00022275,2]
[388638072,1759283442767,-102.23688723,0.00024657,2]
[388638073,1759283442777,-500.0,0.00024657,2]
[388638074,1759283442786,-280.19903419,0.00024657,2]
[388638075,1759283442796,-501.25530997,0.00024657,2]
[388638076,1759283442806,-500.0,0.00024657,2]
[388638077,1759283442815,-500.0,0.00024657,2]
[388638078,1759283442824,-500.0,0.00024657,2]
[388638079,1759283442834,-500.0,0.00024657,2]
[388638080,1759283442844,-500.0,0.00024657,2]
[388638081,1759283442854,-342.93632665,0.00024657,2]
[388638082,1759283442865,-293.04333218,0.00024657,2]
[388638083,1759283442875,-500.0,0.00024657,2]
[388638084,1759283442884,-500.0,0.00024657,2]
[388638085,1759283442894,-500.0,0.00024657,2]
[388638086,1759283442903,-500.0,0.00024657,2]
[388638087,1759283442913,-500.0,0.00024657,2]
[388638088,1759283442922,-500.0,0.00024657,2]
[388638089,1759283442933,-500.0,0.00024657,2]
[388638090,1759283442942,-734.83170396,0.00024657,2]
[388638091,1759283443048,-1481.37829604,0.00024657,2]
[388638092,1759283443058,-500.0,0.00024657,2]
[388638093,1759283443069,-195.16819143,0.00024657,2]
[388638094,1759283443080,-500.0,0.00024657,2]
[388638095,1759283443090,-500.0,0.00024657,2]
[388638096,1759283443100,-267.81484694,0.00024657,2]
[388638097,1759283443126,-132.82115814,0.00024657,2]
[388638098,1759283443136,-346.92884186,0.00024657,2]
[388638104,1759283445587,-260.63,0.00022264,2]
[388638105,1759283445795,-239.37,0.00022264,2]
[388638106,1759283445804,-217.45844789,0.00022264,2]
[388638107,1759283445814,-213.70023197,0.00022264,2]
[388638108,1759283445824,-230.49244025,0.00022731,2]
[388638109,1759283445835,-153.07115814,0.00024657,2]
[388638110,1759283445844,-500.0,0.00024657,2]
[388638111,1759283445853,-1151.16,0.00024657,2]
[388638112,1759283445863,-500.0,0.00024657,2]
[388638113,1759283445872,-500.0,0.00024657,2]
[388638114,1759283445882,-500.0,0.00024657,2]
[388638115,1759283445891,-864.46,0.00024657,2]
[388638116,1759283445901,-500.0,0.00024657,2]
[388638117,1759283445911,-500.0,0.00024657,2]
[388638118,1759283445921,-500.0,0.00024657,2]
[388638119,1759283445930,-2623.09,0.00024657,2]
[388638120,1759283445939,-500.0,0.00024657,2]
[388638121,1759283445948,-500.0,0.00024657,2]
[388638122,1759283445958,-500.0,0.00024657,2]
[388638123,1759283445968,-500.0,0.00024657,2]
[388638124,1759283445977,-1396.95,0.00024657,2]
[388638125,1759283445987,-500.0,0.00024657,2]
[388638126,1759283445996,-412.61134722,0.00024657,2]
[388638127,1759283446025,-87.38865278,0.00024657,2]
[388638128,1759283446035,-500.0,0.00024657,2]
[388638129,1759283446045,-26.78074603,0.00024657,2]
[388638130,1759283446673,5000.0,0.00030137,120]
[388638131,1759283452632,5000.0,0.00030137,120]
[388638132,1759283461577,5000.0,0.00030137,120]
[388638133,1759283467817,5000.0,0.00030137,120]
[388638134,1759283474758,10000.0,0.00030137,120]
[388638135,1759283558092,5000.0,0.00030137,120]
[388638136,1759283561950,227.22,0.00011209,2]
[388638137,1759283562160,227.22,0.00011799,2]
[388638138,1759283562383,227.22,0.00012389,2]
[388638139,1759283562590,227.22,0.00012979,2]
[388638140,1759283562842,227.22,0.00013569,2]
[388638141,1759283563058,227.22,0.00014159,2]
[388638142,1759283563270,227.22,0.00014749,2]
[388638143,1759283563514,227.22,0.00015339,2]
[388638144,1759283563707,227.22,0.00015929,2]
[388638145,1759283563969,227.22,0.00016519,2]
[388638146,1759283564013,5000.0,0.00030137,120]
[388638147,1759283571133,5000.0,0.00030137,120]
[388638148,1759283577043,-158.31,0.00017109,2]
[388638149,1759283577519,10000.0,0.00030137,120]
[388638150,1759283585073,5000.0,0.00030137,120]
[388638151,1759283592344,3000.0,0.00030137,120]
[388638152,1759283598930,3000.0,0.00030137,120]
[388638153,1759283604620,5000.0,0.00030137,120]
[388638154,1759283610113,5000.0,0.00030137,120]
[388638155,1759283616528,3000.0,0.00030137,120]
[388638156,1759283631031,1292.0,0.00030137,120]
[388638157,1759283858096,-68.91,0.00017109,2]
[388638158,1759283858120,-136.50754721,0.0001737,2]
[388638159,1759283862196,-160.87,0.0001737,2]
[388638164,1759284479212,-250.0,0.00017,2]
[388638165,1759284479240,-250.0,0.00017023,2]
[388638166,1759284479268,-195.0,0.00017046,2]
[388638167,1759284479296,-2500.0,0.00017093,2]
[388638168,1759284479328,-195.0,0.00017159,2]
[388638169,1759284479356,-477.0,0.00017259,2]
[388638170,1759284479383,-1985.71502821,0.00017281,2]
[388638171,1759284479412,-128.4488062,0.0001737,2]
[388638172,1759284479554,-22.5511938,0.0001737,2]
[388638173,1759284519260,151.05,0.00030137,120]
[388638174,1759284548370,994.97,9.972e-05,2]
[388638175,1759284549113,994.97,0.00010497,2]
[388638176,1759284549195,994.97,0.00011021,2]
[388638177,1759284549289,994.97,0.00011546,2]
[388638178,1759284549451,994.97,0.00012071,2]
[388638179,1759284549526,994.97,0.00012596,2]
[388638180,1759284549598,994.97,0.00013121,2]
[388638181,1759284549772,994.97,0.00013646,2]
[388638182,1759284550049,994.97,0.0001417,2]
[388638183,1759284550237,994.97,0.00014695,2]
[388638184,1759284550456,994.97,0.0001522,2]
[388638185,1759284550651,994.97,0.00015745,2]
[388638186,1759284550891,994.97,0.0001627,2]
[388638187,1759284556076,8827.54609438,0.00010497,2]
[388638188,1759284593225,-311.41104803,0.00016795,2]
[388638189,1759284595696,-384.32,0.00016795,2]
[388638191,1759284598356,-268.40510397,0.00016795,2]
[388638192,1759284600962,-30.833848,0.00016795,2]
[388638196,1759284631642,-832.16377323,0.00017319,2]
[388638197,1759284631695,-162.80622677,0.00017319,2]
[388638198,1759284631706,-183.87105609,0.0001737,2]
[388638199,1759284631717,-88.43557677,0.0001737,2]
[388638200,1759284631727,-322.28381457,0.0001738,2]
[388638201,1759284631737,-385.81312398,0.00017388,2]
[388638202,1759284631748,-385.81312398,0.00017392,2]
[388638203,1759284631758,-322.28381457,0.00017418,2]
[388638204,1759284631767,-322.28381457,0.00017443,2]
[388638205,1759284631777,-322.28381457,0.00017447,2]
[388638206,1759284631791,-385.81312398,0.00017462,2]
[388638207,1759284631801,-322.28381457,0.0001748,2]
[388638208,1759284631811,-385.81312398,0.00017496,2]
[388638209,1759284631822,-182.86,0.00017591,2]
[388638210,1759284631831,-227.22,0.00017699,2]
[388638211,1759284631841,-700.0,0.00017791,2]
[388638212,1759284631850,-994.97,0.00017844,2]
[388638213,1759284631861,-1389.3509984,0.00017862,2]
[388638214,1759284631871,-227.22,0.00018289,2]
[388638215,1759284631882,-994.97,0.00018369,2]
[388638216,1759284631893,-191.31814288,0.000186,2]
[388638217,1759284631903,-1140.0,0.00018698,2]
[388638218,1759284631914,-195.0,0.000187,2]
[388638219,1759284631926,-195.0,0.000187,2]
[388638220,1759284631938,-250.0,0.000187,2]
[388638221,1759284631949,-227.22,0.00018879,2]
[388638222,1759284631960,-700.0,0.00018887,2]
[388638223,1759284631971,-994.97,0.00018894,2]
[388638224,1759284631982,-2054.10030217,0.00019051,2]
[388638225,1759284631992,-597.34,0.00019338,2]
[388638226,1759284632002,-200.0,0.00019338,2]
[388638227,1759284632012,-151.0,0.00019338,2]
[388638229,1759284632021,-151.0,0.00019338,2]
[388638231,1759284632031,-151.0,0.00019338,2]
[388638233,1759284632040,-151.0,0.00019338,2]
[388638235,1759284632053,-186.9844024,0.00019338,2]
[388638237,1759284632063,-200.0,0.00019338,2]
[388638239,1759284632072,-500.0,0.00019338,2]
[388638241,1759284632083,-500.0,0.00019338,2]
[388638243,1759284632093,-500.0,0.00019338,2]
[388638245,1759284632102,-500.0,0.00019338,2]
[388638247,1759284632112,-151.0,0.00019338,2]
[388638249,1759284632123,-500.0,0.00019338,2]
[388638251,1759284632134,-151.0,0.00019338,2]
[388638253,1759284632144,-151.0,0.00019338,2]
[388638255,1759284632154,-151.0,0.00019338,2]
[388638257,1759284632163,-151.0,0.00019338,2]
[388638259,1759284632173,-151.0,0.00019338,2]
[388638261,1759284632182,-151.0,0.00019338,2]
[388638264,1759284632196,-158.19775172,0.00019338,2]
[388638266,1759284632205,-500.0,0.00019338,2]
[388638268,1759284632215,-151.0,0.00019338,2]
[388638270,1759284632224,-500.0,0.00019338,2]
[388638272,1759284632234,-151.0,0.00019338,2]
[388638274,1759284632243,-500.0,0.00019338,2]
[388638276,1759284632252,-151.0,0.00019338,2]
[388638278,1759284632262,-500.0,0.00019338,2]